Workbook

Sheet 労務外注
AC1: ※弊社記入欄
M3: 請 | R3: 求 | W3: 書
W5: 令 | X5: 和 | Y5: 4 | AA5: 年 | AB5: 10 | AD5: 月 | AE5: 15 | AG5: 日
B7: 株式会社 | E7: キクチコーポレーション | N7: 御中
A9: 下記の通り請求いたします｡
S10: 請求者住所･氏名･印 | Y10: ｺｰﾄﾞNO.
B12: 請 | C12: 求 | D12: 金 | E12: 額 | G12: =SUM(P28) -> 0 | T12: 住所
B13: =AB5 -> 10 | D13: 月 | E13: 分
T14: 氏名
V15: 印
A16: 工 事 番 号
A17: 工 事 略 称
A18: 工 事 件 名
A20: 項 目 | I20: 前回迄 | R20: 今回 | AA20: 累計
A21: ① | C21: 契約金額 | G21: =総括表!G32 -> 0 | P21: =総括表!G33 -> 0 | Y21: =SUM(G21,P21) -> 0
C22: 消費税 | G22: =INT(G21*10%) -> 0 | P22: =INT(P21*10%) -> 0 | Y22: =SUM(G22,P22) -> 0
C23: 契約合計 | G23: =SUM(G21:N22) -> 0 | P23: =SUM(P21:W22) -> 0 | Y23: =SUM(Y21:AF22) -> 0
A24: ② | C24: 出来高金額 | G24: =総括表!I35 -> 0 | P24: =SUM(総括表!K35) -> 0 | Y24: =SUM(G24,P24) -> 0
A25: ③ | C25: 保留金額 | G25: =SUM(総括表!I36) -> 0 | P25: =SUM(総括表!K36) -> 0 | Y25: =SUM(G25,P25) -> 0
A26: ④ | C26: 請求金額 ②＋③ | G26: =SUM(G24:N25) -> 0 | P26: =SUM(P24:W25) -> 0 | Y26: =SUM(Y24:AF25) -> 0
C27: 消費税 | G27: =総括表!I38 -> 0 | P27: =INT(P26*10%) -> 0 | Y27: =SUM(G27,P27) -> 0
C28: 請求合計 | G28: =SUM(G26:N27) -> 0 | P28: =SUM(P26:W27) -> 0 | Y28: =SUM(Y26:AG27) -> 0
A29: ⑤ | C29: 残 高 ①－④ | Y29: =Y21-Y26 -> 0
C30: 消費税 ①－④ | Y30: =Y22-Y27 -> 0
C31: 残高合計 ①－④ | Y31: =SUM(Y29:AF30) -> 0
K33: 銀 | L33: 行 | M33: ・ | N33: 金 | O33: 庫 | P33: ・ | Q33: 組 | R33: 合
A34: 振込銀行 | P34: 本 | Q34: ・ | R34: 支 | S34: 店 | Z34: 毎月１５日締切
D35: 預金種別 | M35: （ | N35: 普 | O35: 通 | P35: １ | Q35: ・ | R35: 当 | S35: 座 | T35: ２ | U35: ）
D36: 口座番号
C37: 口座名義 | D37: ﾌﾘｶﾞﾅ | Z37: 毎月２０日必着
B44: 社是 | T44: 押印欄（弊社利用）
B45: 心にゆとりと豊かさを
B47: スローガン
B49: 「顧客感動」・「コンプライアンス行動」
B51: お客様と社会から信頼される企業へ
W59: 株式会社 キクチコーポレーション

Sheet 総括表
C1: 総括表 | N1: No. 1
A2: 工 種 | D2: 契 約 | H2: 前回迄出来高 | J2: 今回出来高 | L2: 累計出来高 | N2: 残 高
D4: 数 量 | E4: 単位 | F4: 単 価 | G4: 金 額 | H4: 数 量 | I4: 金 額 | J4: 数 量 | K4: 金 額 | L4: 数 量 | M4: 金 額 | N4: 金 額
A32: 契約金額 | G32: 0
A33: 今回変更
A34: 契約累計 | G34: =SUM(G32:G33) -> 0
A35: 出来高金額 | M35: =SUM(I35,K35) -> 0 | N35: =SUM(G34-M35) -> 0
A36: 保留金額 | M36: =SUM(I36,K36) -> 0 | N36: =-(M36) -> 0
A37: 請求金額 | G37: =G34 -> 0 | I37: =SUM(I35:I36) -> 0 | K37: =SUM(K35:K36) -> 0 | M37: =SUM(I37+K37) -> 0 | N37: =SUM(N35:N36) -> 0
A38: 消 費 税 | G38: =INT(G37*10%) -> 0 | I38: =INT(I37*10%) -> 0 | K38: =INT(K37*10%) -> 0 | M38: =I38+K38 -> 0 | N38: =G38-M38 -> 0
A39: 合 計 | G39: =SUM(G37:G38) -> 0 | I39: =SUM(I37:I38) -> 0 | K39: =SUM(K37:K38) -> 0 | M39: =SUM(M37:M38) -> 0 | N39: =SUM(N37:N38) -> 0
J44: 株式会社 キクチコーポレーション

Sheet 内訳明細書
C1: 内訳明細書 | N1: No. 1
A2: 工 種 | D2: 契 約 | H2: 前回迄出来高 | J2: 今回出来高 | L2: 累計出来高 | N2: 残 高
D4: 数 量 | E4: 単位 | F4: 単 価 | G4: 金 額 | H4: 数 量 | I4: 金 額 | J4: 数 量 | K4: 金 額 | L4: 数 量 | M4: 金 額 | N4: 金 額
J44: 株式会社 キクチコーポレーション

Sheet 労務外注 (記入方法）
AC1: ※弊社記入欄
M3: 請 | R3: 求 | W3: 書
W5: 令 | X5: 和 | Y5: 4 | AA5: 年 | AB5: 10 | AD5: 月 | AE5: 15 | AG5: 日
B7: 株式会社 | E7: キクチコーポレーション | N7: 御中
A9: 下記の通り請求いたします｡
S10: 請求者住所･氏名･印 | Y10: ｺｰﾄﾞNO.
B12: 請 | C12: 求 | D12: 金 | E12: 額 | G12: =SUM(P28) -> 106590 | T12: 住所 | V12: 東京都練馬区〇丁目〇番
B13: =AB5 -> 10 | D13: 月 | E13: 分
T14: 氏名 | V14: ＡＢＣ株式会社
V15: 印
A16: 工 事 番 号 | H16: 04-00-00
A17: 工 事 略 称 | H17: 西大泉水道
A18: 工 事 件 名 | H18: 配水本管（500㎜）移設工事
A20: 項 目 | I20: 前回迄 | R20: 今回 | AA20: 累計
A21: ① | C21: 契約金額 | G21: ='総括表 (記入方法) '!G32 -> 64000 | P21: ='総括表 (記入方法) '!G33 -> 70000 | Y21: =SUM(G21,P21) -> 134000
C22: 消費税 | G22: =INT(G21*10%) -> 6400 | P22: =INT(P21*10%) -> 7000 | Y22: =SUM(G22,P22) -> 13400
C23: 契約合計 | G23: =SUM(G21:N22) -> 70400 | P23: =SUM(P21:W22) -> 77000 | Y23: =SUM(Y21:AF22) -> 147400
A24: ② | C24: 出来高金額 | G24: ='総括表 (記入方法) '!I35 -> 32000 | P24: =SUM('総括表 (記入方法) '!K35) -> 102000 | Y24: =SUM(G24,P24) -> 134000
A25: ③ | C25: 保留金額 | G25: =SUM('総括表 (記入方法) '!I36) -> -1600 | P25: =SUM('総括表 (記入方法) '!K36) -> -5100 | Y25: =SUM(G25,P25) -> -6700
A26: ④ | C26: 請求金額 ②＋③ | G26: =SUM(G24:N25) -> 30400 | P26: =SUM(P24:W25) -> 96900 | Y26: =SUM(Y24:AF25) -> 127300
C27: 消費税 | G27: ='総括表 (記入方法) '!I38 -> 3040 | P27: =INT(P26*10%) -> 9690 | Y27: =SUM(G27,P27) -> 12730
C28: 請求合計 | G28: =SUM(G26:N27) -> 33440 | P28: =SUM(P26:W27) -> 106590 | Y28: =SUM(Y26:AG27) -> 140030
A29: ⑤ | C29: 残 高 ①－④ | Y29: =Y21-Y26 -> 6700
C30: 消費税 ①－④ | Y30: =Y22-Y27 -> 670
C31: 残高合計 ①－④ | Y31: =SUM(Y29:AF30) -> 7370
F33: 三井住友 | K33: 銀 | L33: 行 | M33: ・ | N33: 金 | O33: 庫 | P33: ・ | Q33: 組 | R33: 合 | T33: 0 | U33: 0 | V33: 0 | W33: 9
A34: 振込銀行 | F34: 大泉 | P34: 本 | Q34: ・ | R34: 支 | S34: 店 | U34: 6 | V34: 0 | W34: 8 | Z34: 毎月１５日締切
D35: 預金種別 | M35: （ | N35: 普 | O35: 通 | P35: １ | Q35: ・ | R35: 当 | S35: 座 | T35: ２ | U35: ） | W35: 1
D36: 口座番号 | Q36: 1 | R36: 2 | S36: 3 | T36: 4 | U36: 5 | V36: 6 | W36: 7
C37: 口座名義 | D37: ﾌﾘｶﾞﾅ | F37: エービーシー カブシキガイシャ | Z37: 毎月２０日必着
F38: ＡＢＣ株式会社
B44: 社是 | T44: 押印欄（弊社利用）
B45: 心にゆとりと豊かさを
B47: スローガン
B49: 「顧客感動」・「コンプライアンス行動」
B51: お客様と社会から信頼される企業へ
W59: 株式会社 キクチコーポレーション

Sheet 総括表 (記入方法)
C1: 総括表 | N1: No. 1
A2: 工 種 | D2: 契 約 | H2: 前回迄出来高 | J2: 今回出来高 | L2: 累計出来高 | N2: 残 高
D4: 数 量 | E4: 単位 | F4: 単 価 | G4: 金 額 | H4: 数 量 | I4: 金 額 | J4: 数 量 | K4: 金 額 | L4: 数 量 | M4: 金 額 | N4: 金 額
A6: 1 | C6: ='内訳明細書 (記入方法) '!C6 -> 立坑内配管工 | D6: 1 | E6: 式 | G6: ='内訳明細書 (記入方法) '!G9 -> 55000 | H6: =IF(I6=0,0,1) -> 1 | I6: ='内訳明細書 (記入方法) '!I9 -> 27500 | J6: =IF(K6=0,0,1) -> 1 | K6: ='内訳明細書 (記入方法) '!K9 -> 27500 | L6: =IF(M6=0,0,1) -> 1 | M6: ='内訳明細書 (記入方法) '!M9 -> 55000 | N6: =SUM(G6-M6) -> 0
C7: 法定福利費 | D7: 1 | E7: 式 | G7: 9000 | H7: =IF(I7=0,0,1) -> 1 | I7: 4500 | J7: =IF(K7=0,0,1) -> 1 | K7: 4500 | L7: =IF(M7=0,0,1) -> 1 | M7: =K7+I7 -> 9000 | N7: =SUM(G7-M7) -> 0
C8: 小 計 | G8: =SUM(G6:G7) -> 64000 | I8: =SUM(I6:I7) -> 32000 | K8: =SUM(K6:K7) -> 32000 | M8: =SUM(M6:M7) -> 64000 | N8: =SUM(G8-M8) -> 0
C12: 今回追加工事
A13: 2 | C13: 押込口築造工 | D13: 1 | E13: 式 | G13: ='内訳明細書 (記入方法) '!G14 -> 61000 | H13: =IF(I13=0,0,1) -> 0 | I13: ='内訳明細書 (記入方法) '!I14 -> 0 | J13: =IF(K13=0,0,1) -> 1 | K13: ='内訳明細書 (記入方法) '!K14 -> 61000 | L13: =IF(M13=0,0,1) -> 1 | M13: ='内訳明細書 (記入方法) '!M14 -> 61000 | N13: =SUM(G13-M13) -> 0
C14: 法定福利費 | D14: 1 | E14: 式 | G14: 9000 | H14: =IF(I14=0,0,1) -> 0 | I14: 0 | J14: =IF(K14=0,0,1) -> 1 | K14: 9000 | L14: =IF(M14=0,0,1) -> 1 | M14: =K14+I14 -> 9000 | N14: =SUM(G14-M14) -> 0
C15: 小 計 | G15: =SUM(G13:G14) -> 70000 | I15: =SUM(I13:I14) -> 0 | K15: =SUM(K13:K14) -> 70000 | M15: =SUM(M13:M14) -> 70000 | N15: =SUM(G15-M15) -> 0
C17: 合 計 | G17: =SUM(G8,G15) -> 134000 | I17: =SUM(I8,I15) -> 32000 | K17: =SUM(K8,K15) -> 102000 | M17: =SUM(M8,M15) -> 134000 | N17: =SUM(G17-M17) -> 0
A32: 契約金額 | G32: =+G8 -> 64000
A33: 今回変更 | G33: =G15 -> 70000
A34: 契約累計 | G34: =SUM(G32:G33) -> 134000
A35: 出来高金額 | I35: =I17 -> 32000 | K35: =K17 -> 102000 | M35: =M17 -> 134000 | N35: =SUM(G34-M35) -> 0
A36: 保留金額 | I36: -1600 | K36: -5100 | M36: =SUM(I36,K36) -> -6700 | N36: =-(M36) -> 6700
A37: 請求金額 | G37: =G34 -> 134000 | I37: =SUM(I35:I36) -> 30400 | K37: =SUM(K35:K36) -> 96900 | M37: =SUM(I37+K37) -> 127300 | N37: =SUM(N35:N36) -> 6700
A38: 消 費 税 | G38: =INT(G37*10%) -> 13400 | I38: =INT(I37*10%) -> 3040 | K38: =INT(K37*10%) -> 9690 | M38: =I38+K38 -> 12730 | N38: =G38-M38 -> 670
A39: 合 計 | G39: =SUM(G37:G38) -> 147400 | I39: =SUM(I37:I38) -> 33440 | K39: =SUM(K37:K38) -> 106590 | M39: =SUM(M37:M38) -> 140030 | N39: =SUM(N37:N38) -> 7370
J44: 株式会社 キクチコーポレーション

Sheet 内訳明細書 (記入方法)
C1: 内訳明細書 | N1: No. 1
A2: 工 種 | D2: 契 約 | H2: 前回迄出来高 | J2: 今回出来高 | L2: 累計出来高 | N2: 残 高
D4: 数 量 | E4: 単位 | F4: 単 価 | G4: 金 額 | H4: 数 量 | I4: 金 額 | J4: 数 量 | K4: 金 額 | L4: 数 量 | M4: 金 額 | N4: 金 額
A6: 1 | C6: 立坑内配管工
B7: 1 | C7: 配管工 | D7: 2 | E7: ｍ | F7: 20000 | G7: =D7*F7 -> 40000 | H7: 1 | I7: =SUM(F7*H7) -> 20000 | J7: 1 | K7: =SUM(F7*J7) -> 20000 | L7: =H7+J7 -> 2 | M7: =SUM(I7+K7) -> 40000 | N7: =SUM(G7-M7) -> 0
B8: 2 | C8: 配管準備工 | D8: 1 | E8: 式 | G8: 15000 | H8: =IF(I8=0,0,1) -> 1 | I8: 7500 | J8: =IF(K8=0,0,1) -> 1 | K8: 7500 | L8: =IF(M8=0,0,1) -> 1 | M8: =SUM(I8+K8) -> 15000 | N8: =SUM(G8-M8) -> 0
C9: 小 計 | G9: =SUM(G7:G8) -> 55000 | I9: =SUM(I7:I8) -> 27500 | K9: =SUM(K7:K8) -> 27500 | M9: =SUM(M7:M8) -> 55000 | N9: =SUM(N6:N8) -> 0
C10: 今回追加工事
A11: 2 | C11: 押込口築造工
B12: 1 | C12: 押込口埋戻工 | D12: 1 | E12: ｍ | F12: 60000 | G12: =D12*F12 -> 60000 | H12: 0 | I12: =SUM(F12*H12) -> 0 | J12: 1 | K12: =SUM(F12*J12) -> 60000 | L12: =H12+J12 -> 1 | M12: =SUM(I12+K12) -> 60000 | N12: =SUM(G12-M12) -> 0
B13: 2 | C13: 管防護工 | D13: 1 | E13: ｍ | F13: 1000 | G13: =D13*F13 -> 1000 | H13: 0 | I13: =SUM(F13*H13) -> 0 | J13: 1 | K13: =SUM(F13*J13) -> 1000 | L13: =H13+J13 -> 1 | M13: =SUM(I13+K13) -> 1000 | N13: =SUM(G13-M13) -> 0
C14: 小 計 | G14: =SUM(G12:G13) -> 61000 | I14: =SUM(I12:I13) -> 0 | K14: =SUM(K12:K13) -> 61000 | M14: =SUM(M12:M13) -> 61000 | N14: =SUM(N11:N13) -> 0
J44: 株式会社 キクチコーポレーション

Sheet 労務外注 (保留金解除方法) 修正中 (hidden)
AC1: ※弊社記入欄
M3: 請 | R3: 求 | W3: 書
W5: 令 | X5: 和 | Y5: 2 | AA5: 年 | AB5: 2 | AD5: 月 | AE5: 20 | AG5: 日
B7: 株式会社 | F7: ホ ー プ | N7: 御中
A9: 下記の通り請求いたします｡
S10: 請求者住所･氏名･印 | Y10: ｺｰﾄﾞNO.
B12: 請 | C12: 求 | D12: 金 | E12: 額 | G12: =SUM(P28) -> 95700 | T12: 住所 | V12: 東京都練馬区〇丁目〇番
B13: =AB5 -> 2 | D13: 月 | E13: 分
T14: 氏名 | V14: ＡＢＣ株式会社
V15: 印
A16: 工 事 番 号 | H16: 31-○○-○○
A17: 工 事 略 称 | H17: ○○水道
A18: 工 事 件 名 | H18: 配水本管（500㎜）移設工事
A20: 項 目 | I20: 前回迄 | R20: 今回 | AA20: 累計
A21: ① | C21: 契約金額 | G21: ='総括表 (保留金解除方法)修正中'!G34 -> 64000 | P21: ='総括表 (保留金解除方法)修正中'!G35 -> 70000 | Y21: =SUM(G21,P21) -> 134000
C22: 消費税 | G22: =INT(G21*10%) -> 6400 | P22: =INT(P21*10%) -> 7000 | Y22: =SUM(G22,P22) -> 13400
C23: 契約合計 | G23: =SUM(G21:N22) -> 70400 | P23: =SUM(P21:W22) -> 77000 | Y23: =SUM(Y21:AF22) -> 147400
A24: ② | C24: 出来高金額 | G24: ='総括表 (保留金解除方法)修正中'!I37 -> 32000 | P24: =SUM('総括表 (保留金解除方法)修正中'!K37) -> 102000 | Y24: =SUM(G24,P24) -> 134000
A25: ③ | C25: 保留金額 | G25: =SUM('総括表 (保留金解除方法)修正中'!I38) -> -5000 | P25: =SUM('総括表 (保留金解除方法)修正中'!K38) -> -15000 | Y25: =SUM(G25,P25) -> -20000
A26: ④ | C26: 請求金額 ②＋③ | G26: =SUM(G24:N25) -> 27000 | P26: =SUM(P24:W25) -> 87000 | Y26: =SUM(Y24:AF25) -> 114000
C27: 消費税 | G27: ='総括表 (保留金解除方法)修正中'!I40 -> 2700 | P27: =INT(P26*10%) -> 8700 | Y27: =SUM(G27,P27) -> 11400
C28: 請求合計 | G28: =SUM(G26:N27) -> 29700 | P28: =SUM(P26:W27) -> 95700 | Y28: =SUM(Y26:AG27) -> 125400
A29: ⑤ | C29: 残 高 ①－④ | Y29: =Y21-Y26 -> 20000
C30: 消費税 ①－④ | Y30: =Y22-Y27 -> 2000
C31: 残高合計 ①－④ | Y31: =SUM(Y29:AF30) -> 22000
F33: 〇 | G33: 〇 | H33: 〇 | K33: 銀 | L33: 行 | M33: ・ | N33: 金 | O33: 庫 | P33: ・ | Q33: 組 | R33: 合 | T33: 1 | U33: 2 | V33: 3 | W33: 4
A34: 振込銀行 | F34: × | G34: × | H34: × | P34: 本 | Q34: ・ | R34: 支 | S34: 店 | U34: 5 | V34: 6 | W34: 7 | Z34: 毎月２０日締切
D35: 預金種別 | M35: （ | N35: 普 | O35: 通 | P35: １ | Q35: ・ | R35: 当 | S35: 座 | T35: ２ | U35: ） | W35: 1
D36: 口座番号 | Q36: 1 | R36: 2 | S36: 3 | T36: 4 | U36: 5 | V36: 6 | W36: 7
C37: 口座名義 | D37: ﾌﾘｶﾞﾅ | F37: エービーシー カブシキガイシャ | Z37: 毎月２５日必着
F38: ＡＢＣ株式会社
B44: 社是 | T44: 押印欄（弊社利用）
B45: 心にゆとりと豊かさを
B47: スローガン
B49: 「顧客感動」・「コンプライアンス行動」
B51: お客様と社会から信頼される企業へ
A54: [文書番号(経～053-1)] | Z54: 株式会社 ホ ー プ

Sheet 総括表 (保留金解除方法)修正中 (hidden)
C1: 総括表 | N1: No. 1
A2: 工 種 | D2: 契 約 | H2: 前回迄出来高 | J2: 今回出来高 | L2: 累計出来高 | N2: 残 高
D4: 数 量 | E4: 単位 | F4: 単 価 | G4: 金 額 | H4: 数 量 | I4: 金 額 | J4: 数 量 | K4: 金 額 | L4: 数 量 | M4: 金 額 | N4: 金 額
A6: 1 | C6: ='内訳明細書 (記入方法) '!C6 -> 立坑内配管工 | D6: 1 | E6: 式 | G6: ='内訳明細書 (記入方法) '!G9 -> 55000 | H6: 1 | I6: ='内訳明細書 (記入方法) '!I9 -> 27500 | J6: 0 | K6: ='内訳明細書 (記入方法) '!K9 -> 27500 | L6: 1 | M6: ='内訳明細書 (記入方法) '!M9 -> 55000 | N6: =SUM(G6-M6) -> 0
C7: 小 計 | G7: =SUM(G6) -> 55000 | I7: =SUM(I6) -> 27500 | K7: =SUM(K6) -> 27500 | M7: =SUM(M6) -> 55000 | N7: =SUM(G7-M7) -> 0
C9: 法定福利費 | D9: 1 | E9: 式 | G9: 9000 | H9: 1 | I9: 4500 | J9: 1 | K9: 4500 | L9: 0 | M9: =K9+I9 -> 9000 | N9: =SUM(G9-M9) -> 0
C10: 合 計 | G10: =SUM(G7,G9) -> 64000 | I10: =SUM(I7,I9) -> 32000 | K10: =SUM(K7,K9) -> 32000 | M10: =SUM(M7,M9) -> 64000 | N10: =SUM(G10-M10) -> 0
C12: 追加工事
A13: 2 | C13: 押込口築造工 | D13: 1 | E13: 式 | G13: ='内訳明細書 (記入方法) '!G14 -> 61000 | H13: 0 | I13: ='内訳明細書 (記入方法) '!I14 -> 0 | J13: 1 | K13: ='内訳明細書 (記入方法) '!K14 -> 61000 | L13: 1 | M13: ='内訳明細書 (記入方法) '!M14 -> 61000 | N13: =SUM(G13-M13) -> 0
C14: 法定福利費 | D14: 1 | E14: 式 | G14: 9000 | H14: 0 | I14: 0 | J14: 1 | K14: 9000 | L14: 0 | M14: =K14+I14 -> 9000 | N14: =SUM(G14-M14) -> 0
C15: 計 | G15: =SUM(G13:G14) -> 70000 | I15: =SUM(I13:I14) -> 0 | K15: =SUM(K13:K14) -> 70000 | M15: =SUM(M13:M14) -> 70000 | N15: =SUM(G15-M15) -> 0
C17: 合 計 | G17: =SUM(G10,G15) -> 134000 | I17: =SUM(I10,I15) -> 32000 | K17: =SUM(K10,K15) -> 102000 | M17: =SUM(M10,M15) -> 134000 | N17: =SUM(G17-M17) -> 0
A34: 契約金額 | G34: =G10 -> 64000
A35: 今回変更 | G35: =G15 -> 70000
A36: 契約累計 | G36: =SUM(G34:G35) -> 134000
A37: 出来高金額 | I37: =I10 -> 32000 | K37: =K17 -> 102000 | M37: =M17 -> 134000 | N37: =SUM(G36-M37) -> 0
A38: 保留金額 | I38: -5000 | K38: -15000 | M38: =SUM(I38,K38) -> -20000 | N38: =-(M38) -> 20000
A39: 請求金額 | G39: =G36 -> 134000 | I39: =SUM(I37:I38) -> 27000 | K39: =SUM(K37:K38) -> 87000 | M39: =SUM(I39+K39) -> 114000 | N39: =SUM(N37:N38) -> 20000
A40: 消 費 税 | G40: =INT(G39*10%) -> 13400 | I40: =INT(I39*10%) -> 2700 | K40: =INT(K39*10%) -> 8700 | M40: =I40+K40 -> 11400 | N40: =G40-M40 -> 2000
A41: 合 計 | G41: =SUM(G39:G40) -> 147400 | I41: =SUM(I39:I40) -> 29700 | K41: =SUM(K39:K40) -> 95700 | M41: =SUM(M39:M40) -> 125400 | N41: =SUM(N39:N40) -> 22000
A43: [文書番号(経～053-2)] | L43: 株式会社 ホ ー プ
